bitfinex/quotes_BTCUSD_20240727
["timestamp","ask_amount","ask_price","bid_price","bid_amount"]
[1722054297683,0.39941048,68008.0,68007.0,0.51977777]
[1722054298203,0.39941048,68008.0,68007.0,0.51977766]
[1722054298413,0.39741048,68008.0,68007.0,0.51977766]
[1722054298974,0.39741048,68008.0,68007.0,0.39759]
[1722054299177,0.39741048,68008.0,68007.0,0.50577766]
[1722054299600,0.39741048,68008.0,68007.0,0.51977766]
[1722054300128,0.42048193,68008.0,68007.0,0.50577766]
[1722054300336,0.25036948,68008.0,68007.0,0.51977766]
[1722054300515,0.25036948,68008.0,68007.0,0.58107766]
[1722054300691,0.25036948,68008.0,68007.0,0.58107752]
[1722054301311,0.25036948,68008.0,68007.0,0.65757752]
[1722054301511,0.25036948,68008.0,68007.0,0.80462052]
[1722054301512,0.01610453,68008.0,68007.0,0.80462052]
[1722054301742,0.00084,68008.0,68007.0,0.80462052]
[1722054301939,0.00084,68008.0,68007.0,1.09870752]
[1722054302732,0.00084,68008.0,68007.0,1.54305409]
[1722054303143,0.00084,68008.0,68007.0,1.83714109]
[1722054303476,0.02391071,68008.0,68007.0,1.71495357]
[1722054303677,0.02391071,68008.0,68007.0,1.83713001]
[1722054304749,0.00084,68008.0,68007.0,1.83713001]
[1722054306919,0.00084,68008.0,68007.0,1.83712762]
[1722054307982,0.02391025,68008.0,68007.0,1.83712762]
[1722054308390,0.00084,68008.0,68007.0,1.83712762]
[1722054311699,0.02391029,68008.0,68007.0,1.83712762]
[1722054312693,0.00084,68008.0,68007.0,1.83712762]
[1722054313740,0.00084,68008.0,68007.0,1.83712621]
[1722054315967,0.02391033,68008.0,68007.0,1.83712621]
[1722054316172,0.00084,68008.0,68007.0,1.83712621]
[1722054317282,0.00084,68008.0,68007.0,1.83712598]
[1722054318158,0.31190495,68008.0,68007.0,0.44426241]
[1722054318373,0.45894595,68008.0,68007.0,0.44426241]
[1722054318599,1.04911195,68008.0,68007.0,0.44426241]
[1722054318819,1.44606855,68008.0,68007.0,0.32209]
[1722054319613,1.46914097,68008.0,68007.0,0.32209]
[1722054324069,1.46914097,68008.0,68007.0,0.323014]
[1722054333889,1.44606855,68008.0,68007.0,0.323014]
[1722054337374,1.46914097,68008.0,68007.0,0.323014]
[1722054341690,2.33423455,68008.0,68007.0,0.323014]
[1722054341934,2.76207125,68008.0,68007.0,0.323014]
[1722054342630,2.76207125,68008.0,68007.0,0.309014]
[1722054342841,2.76207125,68008.0,68007.0,0.295014]
[1722054343046,2.76207125,68008.0,68007.0,0.309014]
[1722054343443,2.83857125,68008.0,68007.0,0.309014]
[1722054343642,2.83857125,68008.0,68007.0,0.295014]
[1722054344439,2.84671617,68008.0,68007.0,0.295014]
[1722054344645,2.84927322,68008.0,68007.0,0.295014]
[1722054345054,2.87234881,68008.0,68007.0,0.295014]
[1722054347906,2.87235391,68008.0,68007.0,0.295014]
[1722054351051,2.84582656,68008.0,68007.0,0.295014]
[1722054351224,2.8721923,68008.0,68007.0,0.295014]
[1722054351666,3.00943253,68008.0,68007.0,0.177378]
[1722054351887,3.00943253,68008.0,68007.0,0.10427748]
[1722054352085,3.00943253,68008.0,68007.0,0.07486848]
[1722054352293,3.00943253,68008.0,68007.0,4.8e-07]
[1722054353875,2.57075895,68002.0,68001.0,0.000924]
[1722054354076,2.73539829,68002.0,68001.0,0.000924]
[1722054354489,2.74129429,68002.0,68001.0,0.000924]
[1722054355213,2.74145756,68002.0,68001.0,0.000924]
[1722054356074,2.74145756,68002.0,68001.0,0.001924]
[1722054356501,2.74145756,68002.0,68001.0,0.004924]
[1722054357054,2.89171713,68002.0,68001.0,0.004924]
[1722054357263,2.81521713,68002.0,68001.0,0.004924]
[1722054357472,2.89171713,68002.0,68001.0,0.004924]
[1722054357861,2.74145756,68002.0,68001.0,0.004924]
[1722054360883,2.7645356,68002.0,68001.0,0.004924]
[1722054361722,2.7645356,68002.0,68000.0,8.4e-07]
[1722054361723,2.29488595,68001.0,68000.0,8.4e-07]
[1722054361921,1.16269695,67987.0,67986.0,0.0001478]
[1722054362093,2.21581655,67987.0,67986.0,0.0001478]
[1722054362290,2.50998955,67987.0,67986.0,0.0001478]
[1722054362517,2.53693542,67987.0,67986.0,0.0001478]
[1722054364424,2.56001413,67987.0,67986.0,0.0001478]
[1722054364630,2.68770146,67987.0,67986.0,0.0001478]
[1722054364811,2.56001413,67987.0,67986.0,0.0001478]
[1722054365009,2.56257198,67987.0,67986.0,0.0001478]
[1722054367306,2.56333119,67987.0,67986.0,0.0001478]
[1722054368173,2.57208125,67987.0,67986.0,0.0001478]
[1722054368807,2.59516345,67987.0,67986.0,0.0001478]
[1722054369154,2.74542302,67987.0,67986.0,0.0001478]
[1722054370727,2.7454515,67987.0,67986.0,0.0001478]
[1722054373369,2.7223693,67987.0,67986.0,0.0001478]
[1722054375680,3.0165423,67987.0,67986.0,0.0001478]
[1722054376429,3.0396262,67987.0,67986.0,0.0001478]
[1722054376725,3.0165423,67987.0,67986.0,0.0001478]
[1722054377235,2.98880874,67987.0,67986.0,0.0001478]
[1722054377437,3.01591082,67987.0,67986.0,0.0001478]
[1722054378098,0.23626495,67972.0,67971.0,0.0622]
[1722054378298,0.71589555,67972.0,67971.0,0.0622]
[1722054378616,1.69860955,67972.0,67971.0,0.0622]
[1722054379422,1.69960955,67972.0,67971.0,0.0712]
[1722054379596,1.69960955,67972.0,67971.0,0.0822]
[1722054379797,1.72269542,67972.0,67971.0,0.0822]
[1722054380866,1.69960955,67972.0,67971.0,0.0822]
[1722054382726,1.75858455,67972.0,67971.0,0.0822]
[1722054385439,1.79054933,67972.0,67971.0,0.0822]
[1722054385786,1.76746349,67972.0,67971.0,0.0822]
[1722054388226,1.76746349,67972.0,67971.0,0.083124]
[1722054388431,1.91772306,67972.0,67971.0,0.083124]
[1722054390540,1.76746349,67972.0,67971.0,0.083124]
[1722054391555,1.79054883,67972.0,67971.0,0.083124]
[1722054392338,1.76746349,67972.0,67971.0,0.083124]
[1722054392781,1.79425921,67972.0,67971.0,0.083124]
[1722054393787,1.79427521,67972.0,67971.0,0.083124]
[1722054395951,1.79428311,67972.0,67971.0,0.083124]
[1722054397934,1.76747139,67972.0,67971.0,0.083124]
[1722054398134,1.79436038,67972.0,67971.0,0.083124]
[1722054398877,1.81744632,67972.0,67971.0,0.083124]
[1722054399916,1.22897032,67972.0,67971.0,0.164324]
[1722054400126,0.71498939,67972.0,67971.0,0.164324]
[1722054400499,0.42275139,67972.0,67971.0,0.164324]
[1722054400899,0.71698939,67972.0,67971.0,0.164324]
[1722054401129,0.69390345,67972.0,67971.0,0.164324]
[1722054401700,0.71490345,67972.0,67971.0,0.164324]
[1722054403089,1.00914145,67972.0,67971.0,0.164324]
[1722054403872,1.01114145,67972.0,67971.0,0.164324]
[1722054404521,1.03422617,67972.0,67971.0,0.164324]
[1722054404736,1.01114145,67972.0,67971.0,0.164324]
[1722054407879,1.03422617,67972.0,67971.0,0.164324]
[1722054414178,1.03325854,67972.0,67971.0,0.164324]
[1722054417380,1.01017382,67972.0,67971.0,0.164324]
[1722054420611,1.03325854,67972.0,67971.0,0.164324]
[1722054421894,1.01017382,67972.0,67971.0,0.164324]
[1722054424781,1.03325371,67972.0,67971.0,0.164324]
[1722054426609,1.05633843,67972.0,67971.0,0.164324]
[1722054426816,1.03325371,67972.0,67971.0,0.164324]
[1722054429185,0.29565871,67972.0,67971.0,0.164324]
[1722054429421,0.41977771,67972.0,67971.0,0.164324]
[1722054429640,0.44286243,67972.0,67971.0,0.164324]
[1722054429869,0.73710043,67972.0,67971.0,0.164324]
[1722054430547,0.71402054,67972.0,67971.0,0.164324]
[1722054434620,0.41978254,67972.0,67971.0,0.164324]
[1722054435418,0.42178254,67972.0,67971.0,0.164324]
[1722054435623,0.71602054,67972.0,67971.0,0.164324]
[1722054438027,1.01025854,67972.0,67971.0,0.164324]
[1722054438497,1.28141182,67972.0,67971.0,0.020924]
[1722054438648,1.3325434,67972.0,67971.0,0.020924]
[1722054441556,1.3325562,67972.0,67971.0,0.020924]
[1722054441757,1.35564096,67972.0,67971.0,0.020924]
[1722054443007,1.3325562,67972.0,67971.0,0.020924]
[1722054444915,1.33264095,67972.0,67971.0,0.020924]
[1722054446105,1.35572574,67972.0,67971.0,0.020924]
[1722054446476,1.33264095,67972.0,67971.0,0.020924]
[1722054448353,1.33329363,67972.0,67971.0,0.020924]
[1722054449649,1.35637842,67972.0,67971.0,0.020924]
[1722054450089,1.33329363,67972.0,67971.0,0.020924]
[1722054451032,1.30441182,67972.0,67971.0,0.020924]
[1722054451967,1.3332995,67972.0,67971.0,0.020924]
[1722054453118,1.35635341,67972.0,67971.0,0.020924]
[1722054453561,1.35635341,67972.0,67971.0,0.100524]
[1722054453759,1.35635341,67972.0,67971.0,0.163524]
[1722054453760,1.32749665,67972.0,67971.0,0.163524]
[1722054454380,1.32833665,67972.0,67971.0,0.163524]
[1722054454582,1.35719341,67972.0,67971.0,0.163524]
[1722054454873,1.32833665,67972.0,67971.0,0.163524]
[1722054460098,1.03409865,67972.0,67971.0,0.163524]
[1722054461892,1.04038194,67972.0,67971.0,0.163524]
[1722054463344,1.04038194,67972.0,67971.0,0.020924]
[1722054463517,1.04038767,67972.0,67971.0,0.020924]
[1722054463813,1.33462567,67972.0,67971.0,0.020924]
[1722054466374,1.35771057,67972.0,67971.0,0.020924]
[1722054466774,1.32833672,67972.0,67971.0,0.020924]
[1722054466987,1.35765044,67972.0,67971.0,0.020924]
[1722054469840,1.33456554,67972.0,67971.0,0.020924]
[1722054470271,1.30525182,67972.0,67971.0,0.020924]
[1722054470489,1.33459647,67972.0,67971.0,0.020924]
[1722054472917,1.3576816,67972.0,67971.0,0.020924]
[1722054473373,1.33459647,67972.0,67971.0,0.020924]
[1722054473798,1.30525182,67972.0,67971.0,0.020924]
[1722054474026,1.33457779,67972.0,67971.0,0.020924]
[1722054476446,1.35766309,67972.0,67971.0,0.020924]
[1722054477319,1.35766629,67972.0,67971.0,0.020924]
[1722054478168,1.33458099,67972.0,67971.0,0.020924]
[1722054480527,1.3345849,67972.0,67971.0,0.020924]
[1722054481400,1.3576702,67972.0,67971.0,0.020924]
[1722054481619,1.3345849,67972.0,67971.0,0.020924]
[1722054483368,1.30525182,67972.0,67971.0,0.081924]
[1722054483540,1.33454806,67972.0,67971.0,0.081924]
[1722054484671,1.35763336,67972.0,67971.0,0.081924]
[1722054486920,1.35757622,67972.0,67971.0,0.081924]
[1722054490222,1.35762787,67972.0,67971.0,0.081924]
[1722054490418,1.33454257,67972.0,67971.0,0.081924]
[1722054491284,1.35762345,67972.0,67971.0,0.081924]
[1722054493658,1.35796375,67972.0,67971.0,0.081924]
[1722054493994,1.33488287,67972.0,67971.0,0.081924]
[1722054496931,1.35805426,67972.0,67971.0,0.081924]
[1722054498849,1.33496896,67972.0,67971.0,0.081924]
[1722054500316,1.30525182,67972.0,67971.0,0.081924]
[1722054500560,1.33501394,67972.0,67971.0,0.081924]
[1722054501375,1.33501394,67972.0,67971.0,0.157224]
[1722054502616,1.35809924,67972.0,67971.0,0.157224]
[1722054503471,1.06386124,67972.0,67971.0,0.157224]
[1722054503660,1.04077594,67972.0,67971.0,0.157224]
[1722054504470,1.33501394,67972.0,67971.0,0.157224]
[1722054505034,1.06386124,67972.0,67971.0,0.157224]
[1722054506278,1.35809924,67972.0,67971.0,0.157224]
[1722054507035,1.33501394,67972.0,67971.0,0.157224]
[1722054507240,1.33506204,67972.0,67971.0,0.157224]
[1722054508210,1.04082404,67972.0,67971.0,0.157224]
[1722054508639,1.33506204,67972.0,67971.0,0.157224]
[1722054510329,1.35814734,67972.0,67971.0,0.157224]
[1722054510534,1.32833712,67972.0,67971.0,0.157224]
[1722054510754,1.35815358,67972.0,67971.0,0.157224]
[1722054511614,1.33506828,67972.0,67971.0,0.157224]
[1722054513071,1.33506828,67972.0,67971.0,0.081924]
[1722054513223,1.33506828,67972.0,67971.0,0.020924]
[1722054514470,1.55056828,67972.0,67971.0,0.020924]
[1722054514688,1.54383712,67972.0,67971.0,0.020924]
[1722054514886,1.57324528,67972.0,67971.0,0.020924]
[1722054517167,1.55015998,67972.0,67971.0,0.020924]
[1722054517531,1.55019894,67972.0,67971.0,0.020924]
[1722054517901,1.48979894,67972.0,67971.0,0.020924]
[1722054520280,1.51288424,67972.0,67971.0,0.020924]
[1722054520942,1.51288327,67972.0,67971.0,0.020924]
[1722054522943,1.43428327,67972.0,67971.0,0.020924]
[1722054524259,1.40483712,67972.0,67971.0,0.020924]
[1722054524410,1.4342821,67972.0,67971.0,0.020924]
[1722054524819,1.4111968,67972.0,67971.0,0.020924]
[1722054527974,1.43428208,67972.0,67971.0,0.020924]
[1722054528601,1.43428208,67972.0,67971.0,0.103924]
[1722054528770,1.43428011,67972.0,67971.0,0.103924]
[1722054529722,1.41119483,67972.0,67971.0,0.103924]
[1722054531274,1.41129492,67972.0,67971.0,0.103924]
[1722054532530,1.43438016,67972.0,67971.0,0.103924]
[1722054532929,1.41129492,67972.0,67971.0,0.103924]
[1722054534490,1.38174985,67972.0,67971.0,0.103924]
[1722054534687,1.41128284,67972.0,67971.0,0.103924]
[1722054536027,1.43436808,67972.0,67971.0,0.103924]
[1722054536817,1.43436808,67972.0,67971.0,0.166024]
[1722054538031,1.43442349,67972.0,67971.0,0.166024]
[1722054538233,1.41133825,67972.0,67971.0,0.166024]
[1722054540905,1.33486683,67972.0,67971.0,0.166024]
[1722054542813,1.35795203,67972.0,67971.0,0.166024]
[1722054543133,1.33486683,67972.0,67971.0,0.166024]
[1722054546007,1.35795203,67972.0,67971.0,0.166024]
[1722054547285,1.35836976,67972.0,67971.0,0.166024]
[1722054550612,1.32833505,67972.0,67971.0,0.166024]
[1722054550826,1.35837051,67972.0,67971.0,0.166024]
[1722054551261,1.33528531,67972.0,67971.0,0.166024]
[1722054554166,1.33527363,67972.0,67971.0,0.166024]
[1722054554356,1.35835452,67972.0,67971.0,0.166024]
[1722054557624,1.35838004,67972.0,67971.0,0.166024]
[1722054558071,1.35838006,67972.0,67971.0,0.166024]
[1722054559169,1.35838057,67972.0,67971.0,0.166024]
[1722054560219,1.38146577,67972.0,67971.0,0.166024]
[1722054560791,1.3583835,67972.0,67971.0,0.166024]
[1722054561016,1.32833074,67972.0,67971.0,0.166024]
[1722054561238,1.3583835,67972.0,67971.0,0.166024]
[1722054563277,1.3814687,67972.0,67971.0,0.166024]
[1722054564490,1.35141594,67972.0,67971.0,0.166024]
[1722054564695,1.38142963,67972.0,67971.0,0.166024]
[1722054567751,1.32833074,67972.0,67971.0,0.166024]
[1722054567960,1.35837836,67972.0,67971.0,0.166024]
[1722054575025,1.36952254,67972.0,67971.0,0.166024]
[1722054575446,1.39260817,67972.0,67971.0,0.166024]
[1722054576751,1.36952254,67972.0,67971.0,0.166024]
[1722054577173,1.34644165,67972.0,67971.0,0.166024]
[1722054578302,1.34645828,67972.0,67971.0,0.166024]
[1722054581343,1.36954391,67972.0,67971.0,0.166024]
[1722054581791,1.34654236,67972.0,67971.0,0.166024]
[1722054581995,1.05230436,67972.0,67971.0,0.166024]
[1722054584483,1.07538972,67972.0,67971.0,0.166024]
[1722054585789,1.05230436,67972.0,67971.0,0.166024]
[1722054588417,1.01101185,67972.0,67971.0,0.166024]
[1722054588623,1.07411037,67972.0,67971.0,0.166024]
[1722054593484,1.09719581,67972.0,67971.0,0.166024]
[1722054595428,1.03409729,67972.0,67971.0,0.166024]
[1722054595589,1.09711649,67972.0,67971.0,0.166024]
[1722054597126,1.07403105,67972.0,67971.0,0.166024]
[1722054598968,1.36826905,67972.0,67971.0,0.166024]
[1722054599708,1.07403105,67972.0,67971.0,0.166024]
[1722054600142,1.36826905,67972.0,67971.0,0.166024]
[1722054600301,1.07403105,67972.0,67971.0,0.166024]
[1722054601480,1.07390886,67972.0,67971.0,0.166024]
[1722054602206,1.36814686,67972.0,67971.0,0.166024]
[1722054602408,1.07390886,67972.0,67971.0,0.166024]
[1722054602578,1.36814686,67972.0,67971.0,0.166024]
[1722054604870,1.36786213,67972.0,67971.0,0.166024]
[1722054605085,1.07362413,67972.0,67971.0,0.166024]
[1722054605303,1.0737092,67972.0,67971.0,0.166024]
[1722054605751,1.05062413,67972.0,67971.0,0.166024]
[1722054607451,1.05062413,67972.0,67971.0,0.020924]
[1722054607646,1.34486213,67972.0,67971.0,0.020924]
[1722054608225,1.34475715,67972.0,67971.0,0.020924]
[1722054608862,1.36784219,67972.0,67971.0,0.020924]
[1722054610928,1.07360419,67972.0,67971.0,0.162024]
[1722054611592,1.01109689,67972.0,67971.0,0.162024]
[1722054618182,0.98801185,67972.0,67971.0,0.162024]
[1722054620874,0.98601185,67972.0,67971.0,0.162024]
[1722054621022,1.00909679,67972.0,67971.0,0.162024]
[1722054621962,1.00909679,67972.0,67971.0,0.456264]
[1722054622948,0.98601185,67972.0,67971.0,0.456264]
[1722054623108,0.98801185,67972.0,67971.0,0.456264]
[1722054623335,1.48864813,67972.0,67971.0,0.315164]
[1722054623564,1.90588613,67972.0,67971.0,0.315164]
[1722054624245,1.90488613,67972.0,67971.0,0.306164]
[1722054624477,1.90488613,67972.0,67971.0,0.296164]
[1722054624979,1.84118785,67972.0,67971.0,0.298164]
[1722054625182,1.90400657,67972.0,67971.0,0.298164]
[1722054625518,1.90400719,67972.0,67971.0,0.298164]
[1722054626301,1.86427441,67972.0,67971.0,0.298164]
[1722054626544,1.9271017,67972.0,67971.0,0.298164]
[1722054628413,1.91327694,67972.0,67971.0,0.298164]
[1722054630080,1.91327694,67972.0,67971.0,0.318164]
[1722054631925,1.91326337,67972.0,67971.0,0.318164]
[1722054635387,1.91354286,67972.0,67971.0,0.318164]
[1722054635970,1.93662939,67972.0,67971.0,0.318164]
[1722054637917,1.95971229,67972.0,67971.0,0.318164]
[1722054638694,1.81701229,67972.0,67971.0,0.318164]
[1722054638895,1.92726172,67972.0,67971.0,0.318164]
[1722054640527,1.63302372,67972.0,67971.0,0.318164]
[1722054640831,1.52276813,67972.0,67971.0,0.318164]
[1722054641028,1.52276813,67972.0,67971.0,0.399364]
[1722054641449,1.52276813,67972.0,67971.0,0.462064]
[1722054642051,1.52289547,67972.0,67971.0,0.462064]
[1722054642247,1.51391768,67972.0,67971.0,0.462064]
[1722054645332,1.51379858,67972.0,67971.0,0.462064]
[1722054646981,1.46746897,67972.0,67971.0,0.462064]
[1722054647168,1.51379858,67972.0,67971.0,0.462064]
[1722054647619,1.51379858,67972.0,67971.0,0.318164]
[1722054648815,1.5135999,67972.0,67971.0,0.318164]
[1722054652166,1.45041928,67972.0,67971.0,0.318164]
[1722054652366,1.51369115,67972.0,67971.0,0.318164]
[1722054655588,1.45041928,67972.0,67971.0,0.318164]
[1722054655801,1.51370045,67972.0,67971.0,0.318164]
[1722054659162,1.44270207,67972.0,67971.0,0.318164]
[1722054659354,1.50598076,67972.0,67971.0,0.318164]
[1722054663822,1.58248076,67972.0,67971.0,0.318164]
[1722054664991,1.58262312,67972.0,67971.0,0.318164]
[1722054668211,1.69293956,67972.0,67971.0,0.318164]
[1722054668413,1.69301334,67972.0,67971.0,0.318164]
[1722054669384,1.58263477,67972.0,67971.0,0.318164]
[1722054669751,1.69303482,67972.0,67971.0,0.318164]
[1722054671779,1.69258082,67972.0,67971.0,0.318164]
[1722054672786,1.61608082,67972.0,67971.0,0.318164]
[1722054675068,0.294252,67969.0,67956.0,0.294308]
[1722054675282,0.294252,67969.0,67953.0,0.2788576]
[1722054675283,0.01586671,67959.0,67957.0,0.0765]
[1722054676247,0.0015542,67958.0,67957.0,0.0765]
[1722054676727,0.0015542,67958.0,67957.0,0.0905]
[1722054677311,0.0015542,67958.0,67957.0,0.0765]
[1722054677512,0.0015542,67958.0,67957.0,0.0905]
[1722054678134,0.01686671,67959.0,67957.0,0.1045]
[1722054678441,0.01686671,67959.0,67958.0,0.1427]
[1722054678595,0.01586671,67959.0,67958.0,0.1427]
[1722054679337,0.01742091,67959.0,67958.0,0.1427]
[1722054679538,0.01586671,67959.0,67958.0,0.1427]
[1722054679748,0.01586671,67959.0,67958.0,0.1707]
[1722054679749,0.01786671,67959.0,67958.0,0.1707]
[1722054680196,0.96487131,67959.0,67958.0,0.1707]
[1722054680399,0.96331711,67959.0,67958.0,0.1567]
[1722054680508,0.96231711,67959.0,67958.0,0.1567]
[1722054680711,0.96331711,67959.0,67958.0,0.1707]
[1722054680912,0.96331711,67959.0,67958.0,0.1567]
[1722054681116,0.96431711,67959.0,67958.0,0.1427]
[1722054681314,0.96531711,67959.0,67958.0,0.1567]
[1722054681714,0.96631711,67959.0,67958.0,0.1707]
[1722054682293,0.96531711,67959.0,67958.0,0.1567]
[1722054682494,0.96531711,67959.0,67958.0,0.1707]
[1722054682646,0.9894048,67959.0,67958.0,0.1707]
[1722054682845,0.96631711,67959.0,67958.0,0.1707]
[1722054685202,0.98263611,67959.0,67958.0,0.1707]
[1722054685421,0.98063611,67959.0,67958.0,0.1707]
[1722054686215,1.0037238,67959.0,67958.0,0.1707]
[1722054686667,1.0057238,67959.0,67958.0,0.1707]
[1722054687886,0.98263611,67959.0,67958.0,0.1707]
[1722054689434,0.98063611,67959.0,67958.0,0.1707]
[1722054689690,0.98263611,67959.0,67958.0,0.1707]
[1722054691055,0.68634111,67959.0,67958.0,0.1707]
[1722054691351,0.03518571,67959.0,67958.0,0.1707]
[1722054691555,0.0367257,67959.0,67958.0,0.1707]
[1722054692284,0.24489911,67959.0,67958.0,0.1707]
[1722054693751,0.03518571,67959.0,67958.0,0.1707]
[1722054693952,0.01886671,67959.0,67958.0,0.1707]
[1722054694191,0.04195439,67959.0,67958.0,0.1707]
[1722054694533,0.05827339,67959.0,67958.0,0.1707]
[1722054697074,0.05852239,67959.0,67958.0,0.1707]
[1722054698132,0.26823579,67959.0,67958.0,0.1707]
[1722054699192,0.05852239,67959.0,67958.0,0.1707]
[1722054699395,0.24514811,67959.0,67958.0,0.1707]
[1722054700654,0.24604108,67959.0,67958.0,0.1707]
[1722054701066,0.24514811,67959.0,67958.0,0.1707]
[1722054701264,0.24633987,67959.0,67958.0,0.1707]
[1722054701643,0.39348687,67959.0,67958.0,0.0908]
[1722054701836,0.39229511,67959.0,67958.0,0.028]
[1722054702631,0.68859011,67959.0,67958.0,0.028]
[1722054702848,0.41738258,67959.0,67958.0,0.028]
[1722054703028,0.39429511,67959.0,67958.0,0.028]
[1722054703416,0.39429511,67959.0,67958.0,0.3223]
[1722054704935,0.68859011,67959.0,67958.0,0.3223]
[1722054705350,0.68659011,67959.0,67958.0,0.3223]
[1722054705960,0.70967765,67959.0,67958.0,0.3223]
[1722054708257,0.71167765,67959.0,67958.0,0.3223]
[1722054709233,0.05852225,67959.0,67958.0,0.4607]
[1722054709443,0.05936225,67959.0,67958.0,0.4607]
[1722054710245,0.20650925,67959.0,67958.0,0.4607]
[1722054711031,0.18342171,67959.0,67958.0,0.4607]
[1722054711230,0.03627471,67959.0,67958.0,0.4607]
[1722054711434,0.00384,67959.0,67958.0,0.5372]
[1722054711644,0.00384,67959.0,67958.0,0.978648]
[1722054711645,0.03627471,67959.0,67958.0,0.978648]
[1722054711867,0.01970671,67959.0,67958.0,0.978648]
[1722054712106,0.01970671,67959.0,67958.0,1.09767501]
[1722054712330,0.01970671,67959.0,67958.0,0.978648]
[1722054713950,0.04279368,67959.0,67958.0,0.978648]
[1722054714392,0.01970671,67959.0,67958.0,0.978648]
[1722054714836,0.22942011,67959.0,67958.0,0.4607]
[1722054717582,0.25250717,67959.0,67958.0,0.4607]
[1722054719734,0.22942011,67959.0,67958.0,0.4607]
[1722054720431,0.37656711,67959.0,67958.0,0.3836]
[1722054721536,0.22942011,67959.0,67958.0,0.3836]
[1722054721781,0.96515711,67959.0,67958.0,0.3223]
[1722054725988,0.96715711,67959.0,67958.0,0.3223]
[1722054727533,0.99024425,67959.0,67958.0,0.3223]
[1722054728579,0.96715711,67959.0,67958.0,0.3223]
[1722054730634,0.67286211,67959.0,67958.0,0.3223]
[1722054730776,0.67086211,67959.0,67958.0,0.3223]
[1722054731375,0.16685371,67959.0,67958.0,0.3982]
[1722054731598,0.01970671,67959.0,67958.0,0.4609]
[1722054731818,0.04279385,67959.0,67958.0,0.4609]
[1722054736453,0.04279385,67959.0,67958.0,0.902348]
[1722054736662,0.04279385,67959.0,67958.0,0.608049]
[1722054737059,0.20617764,67959.0,67958.0,0.608049]
[1722054737220,0.04279385,67959.0,67958.0,0.608049]
[1722054737915,0.04279385,67959.0,67958.0,0.4609]
[1722054740137,0.25250725,67959.0,67958.0,0.4609]
[1722054740338,0.25250725,67959.0,67958.0,0.385]
[1722054741370,0.25250725,67959.0,67958.0,0.50484838]
[1722054742155,0.22942011,67959.0,67958.0,0.50484838]
[1722054742765,0.22942011,67959.0,67958.0,0.5048517]
[1722054743593,0.22942011,67959.0,67958.0,0.4421517]
[1722054746138,0.22942011,67959.0,67958.0,0.3223]
[1722054746347,0.22942011,67959.0,67958.0,0.44213621]
[1722054749636,0.22942011,67959.0,67958.0,0.3223]
[1722054749760,0.22942011,67959.0,67958.0,0.44206302]
[1722054750178,0.25250725,67959.0,67958.0,0.44206302]
[1722054751197,0.22942011,67959.0,67958.0,0.44206302]
[1722054751497,0.37656711,67959.0,67958.0,0.44206302]
[1722054752729,0.67086211,67959.0,67958.0,0.44206302]
[1722054752931,0.37656711,67959.0,67958.0,0.44206302]
[1722054753128,0.37656711,67959.0,67958.0,0.44232647]
[1722054754206,0.39965432,67959.0,67958.0,0.44232647]
[1722054754850,0.37656711,67959.0,67958.0,0.44232647]
[1722054755964,0.37656711,67959.0,67958.0,0.44240372]
[1722054756672,0.37656711,67959.0,67958.0,0.44240124]
[1722054758209,0.18994092,67959.0,67958.0,0.44240124]
[1722054758452,0.39965432,67959.0,67958.0,0.44240124]
[1722054758655,0.04279392,67959.0,67958.0,0.44240124]
[1722054758867,0.04279392,67959.0,67958.0,0.58460124]
[1722054759086,0.01970671,67959.0,67958.0,0.58460124]
[1722054759896,0.01970671,67959.0,67958.0,0.58351771]
[1722054761705,0.00384,67959.0,67958.0,1.46952428]
[1722054761908,0.00384,67959.0,67958.0,1.76749367]
[1722054762277,0.00384,67959.0,67958.0,1.81167264]
[1722054762431,0.00384,67959.0,67958.0,1.76749367]
[1722054763246,0.00384,67959.0,67958.0,1.76643702]
[1722054763439,0.00384,67959.0,67958.0,1.81963818]
[1722054765213,0.00384,67959.0,67958.0,1.77547315]
[1722054765918,0.02692548,67959.0,67958.0,1.80497315]
[1722054766119,0.02692548,67959.0,67958.0,1.91988768]
[1722054766549,0.02692548,67959.0,67958.0,1.80190454]
[1722054766733,0.02492548,67959.0,67958.0,1.90585769]
[1722054766950,0.02392548,67959.0,67958.0,1.89185769]
[1722054767100,0.02492548,67959.0,67958.0,1.90585769]
[1722054767474,0.02592548,67959.0,67958.0,1.91985769]
[1722054768235,0.02592548,67959.0,67958.0,1.87571475]
[1722054773397,0.02592548,67959.0,67958.0,1.87593916]
[1722054775040,0.00284,67959.0,67958.0,2.17023816]
[1722054776674,0.00284,67959.0,67958.0,2.0520606]
[1722054776878,0.00284,67959.0,67958.0,2.17000631]
[1722054778117,0.00284,67959.0,67958.0,1.87570731]
[1722054778282,0.02592488,67959.0,67958.0,1.87570731]
[1722054779459,0.00284,67959.0,67958.0,1.87570731]
[1722054782819,0.00284,67959.0,67958.0,1.87530539]
[1722054785117,0.00284,67959.0,67958.0,2.16960439]
[1722054786141,0.00284,67959.0,67958.0,2.1693698]
[1722054787008,0.02592503,67959.0,67958.0,2.1693698]
[1722054787441,0.00284,67959.0,67958.0,2.1693698]
[1722054787648,0.00284,67959.0,67958.0,1.8750708]
[1722054787854,0.00284,67959.0,67958.0,1.9515708]
[1722054788439,0.00284,67959.0,67958.0,1.87715091]
[1722054788643,0.00284,67959.0,67958.0,1.65845091]
[1722054788861,0.00284,67959.0,67958.0,1.7386213]
[1722054789066,0.00284,67959.0,67958.0,1.73495091]
[1722054789242,0.00284,67959.0,67958.0,1.73522335]
[1722054789852,0.00284,67959.0,67958.0,1.73889374]
[1722054790719,0.02592558,67959.0,67958.0,1.73522335]
[1722054791133,0.02592558,67959.0,67958.0,1.73889374]
[1722054791540,0.02592558,67959.0,67958.0,1.73522335]
[1722054791734,0.02592558,67959.0,67958.0,1.65872335]
[1722054791967,0.00284,67959.0,67958.0,1.73522335]
[1722054792583,0.00284,67959.0,67958.0,1.61764171]
[1722054792922,0.00284,67959.0,67958.0,1.44149798]
[1722054794134,0.08354,67959.0,67958.0,1.44149798]
[1722054794359,0.00284,67959.0,67958.0,1.44149798]
[1722054794912,0.00284,67959.0,67958.0,1.44516837]
[1722054795117,0.02592575,67959.0,67958.0,1.44516837]
[1722054795316,0.02592575,67959.0,67958.0,1.73946737]
[1722054796072,0.02592575,67959.0,67958.0,1.73939603]
[1722054796991,0.02592575,67959.0,67958.0,1.73572564]
[1722054798009,0.02592575,67959.0,67958.0,1.73939603]